fUST/lending_fUST_20251002
["ID","MTS","AMOUNT","RATE_DAILY","PERIOD"]
[388741731,1759344638892,-500.0,0.00020273,2]
[388741732,1759344638902,-500.0,0.00020273,2]
[388741733,1759344638911,-500.0,0.00020273,2]
[388741734,1759344638920,-773.86,0.00020273,2]
[388741735,1759344638929,-710.18,0.00020273,2]
[388741736,1759344638938,-500.0,0.00020273,2]
[388741737,1759344638947,-500.0,0.00020273,2]
[388741738,1759344638957,-500.0,0.00020273,2]
[388741739,1759344638966,-500.0,0.00020273,2]
[388741740,1759344638975,-500.0,0.00020273,2]
[388741741,1759344638984,-500.0,0.00020273,2]
[388741742,1759344638994,-500.0,0.00020273,2]
[388741743,1759344639003,-500.0,0.00020273,2]
[388741744,1759344639012,-500.0,0.00020273,2]
[388741745,1759344639021,-500.0,0.00020273,2]
[388741746,1759344639030,-500.0,0.00020273,2]
[388741747,1759344639040,-189.04,0.00020273,2]
[388741748,1759344639049,-500.0,0.00020273,2]
[388741749,1759344639058,-2207.95,0.00020273,2]
[388741750,1759344639067,-1123.46,0.00020273,2]
[388741751,1759344639076,-679.61,0.00020273,2]
[388741752,1759344639086,-500.0,0.00020273,2]
[388741753,1759344639096,-525.78,0.00020273,2]
[388741754,1759344639105,-500.0,0.00020273,2]
[388741755,1759344639114,-902.54,0.00020273,2]
[388741756,1759344639123,-624.86,0.00020273,2]
[388741757,1759344639133,-500.0,0.00020273,2]
[388741758,1759344639143,-500.0,0.00020273,2]
[388741759,1759344639153,-500.0,0.00020273,2]
[388741760,1759344639162,-594.28,0.00020273,2]
[388741761,1759344639172,-500.0,0.00020273,2]
[388741762,1759344639181,-500.0,0.00020273,2]
[388741763,1759344639191,-942.7,0.00020273,2]
[388741764,1759344639200,-500.0,0.00020273,2]
[388741765,1759344639209,-653.46,0.00020273,2]
[388741766,1759344639218,-500.0,0.00020273,2]
[388741767,1759344639227,-1307.00546117,0.000203,2]
[388741768,1759344639236,-160.0,0.00020536,2]
[388741769,1759344639245,-160.0,0.00020536,2]
[388741770,1759344639254,-160.0,0.00020536,2]
[388741771,1759344639263,-160.0,0.00020536,2]
[388741772,1759344639272,-160.0,0.00020536,2]
[388741773,1759344639282,-155.0,0.00020546,2]
[388741774,1759344639291,-500.0,0.00020547,2]
[388741775,1759344639300,-500.0,0.00020547,2]
[388741776,1759344639310,-500.0,0.00020547,2]
[388741777,1759344639319,-500.0,0.00020547,2]
[388741778,1759344639329,-500.0,0.00020547,2]
[388741779,1759344639340,-500.0,0.00020547,2]
[388741780,1759344639351,-500.0,0.00020547,2]
[388741781,1759344639361,-500.0,0.00020547,2]
[388741782,1759344639371,-261.95,0.00020547,2]
[388741783,1759344639380,-500.0,0.00020547,2]
[388741784,1759344639389,-500.0,0.00020547,2]
[388741785,1759344639398,-500.0,0.00020547,2]
[388741786,1759344639407,-507.82,0.00020547,2]
[388741787,1759344639415,-406.26144627,0.00020547,2]
[388741788,1759344639423,-500.0,0.00020547,2]
[388741789,1759344639431,-823.6,0.00020547,2]
[388741790,1759344639439,-500.0,0.00020547,2]
[388741791,1759344639447,-500.0,0.00020547,2]
[388741792,1759344639455,-500.0,0.00020547,2]
[388741793,1759344639463,-500.0,0.00020547,2]
[388741794,1759344639470,-545.4,0.00020547,2]
[388741795,1759344639480,-987.72,0.00020547,2]
[388741796,1759344639489,-500.0,0.00020547,2]
[388741797,1759344639499,-498.91114797,0.00020547,2]
[388741798,1759344639508,-500.0,0.00020547,2]
[388741799,1759344639517,-2410.9,0.00020547,2]
[388741800,1759344639527,-500.0,0.00020547,2]
[388741801,1759344639535,-500.0,0.00020547,2]
[388741802,1759344639544,-500.0,0.00020547,2]
[388741803,1759344639554,-500.0,0.00020547,2]
[388741804,1759344639563,-500.0,0.00020547,2]
[388741805,1759344639573,-500.0,0.00020547,2]
[388741806,1759344639582,-773.86,0.00020547,2]
[388741807,1759344639592,-710.18,0.00020547,2]
[388741808,1759344639602,-500.0,0.00020547,2]
[388741809,1759344639611,-500.0,0.00020547,2]
[388741810,1759344639621,-599.89,0.00020547,2]
[388741811,1759344639631,-500.0,0.00020547,2]
[388741812,1759344639640,-500.0,0.00020547,2]
[388741813,1759344639649,-500.0,0.00020547,2]
[388741814,1759344639658,-500.0,0.00020547,2]
[388741815,1759344639668,-500.0,0.00020547,2]
[388741816,1759344639677,-500.0,0.00020547,2]
[388741817,1759344639686,-500.0,0.00020547,2]
[388741818,1759344639696,-500.0,0.00020547,2]
[388741819,1759344639706,-500.0,0.00020547,2]
[388741820,1759344639715,-19.18742204,0.00020547,2]
[388741821,1759344640030,-644.9213078,0.00019178,2]
[388741822,1759344640039,-500.0,0.00019178,2]
[388741823,1759344640048,-480.0,0.00019178,2]
[388741824,1759344640056,-514.42,0.00019452,2]
[388741825,1759344640065,-2188.76257796,0.00020547,2]
[388741826,1759344640074,-1123.46,0.00020547,2]
[388741827,1759344640083,-679.61,0.00020547,2]
[388741828,1759344640092,-500.0,0.00020547,2]
[388741829,1759344640101,-525.78,0.00020547,2]
[388741830,1759344640109,-500.0,0.00020547,2]
[388741831,1759344640118,-902.54,0.00020547,2]
[388741832,1759344640127,-500.0,0.00020547,2]
[388741833,1759344640135,-500.0,0.00020547,2]
[388741834,1759344640144,-500.0,0.00020547,2]
[388741835,1759344640153,-594.28,0.00020547,2]
[388741836,1759344640162,-500.0,0.00020547,2]
[388741837,1759344640172,-500.0,0.00020547,2]
[388741838,1759344640181,-942.7,0.00020547,2]
[388741839,1759344640190,-500.0,0.00020547,2]
[388741840,1759344640200,-653.46,0.00020547,2]
[388741850,1759344640342,-500.0,0.00020547,2]
[388741852,1759344640354,-637.7868625,0.00020563,2]
[388741854,1759344640363,-150.0,0.00020593,2]
[388741856,1759344640372,-1371.19296058,0.0002061,2]
[388741858,1759344640383,-3060.05684726,0.00020637,2]
[388741860,1759344640392,-260.0,0.00020663,2]
[388741862,1759344640401,-159.5,0.00020745,2]
[388741864,1759344640410,-1500.0,0.00020768,2]
[388741866,1759344640422,-539.56,0.00020812,3]
[388741868,1759344640431,-500.0,0.00020821,2]
[388741870,1759344640440,-500.0,0.00020821,2]
[388741872,1759344640450,-500.0,0.00020821,2]
[388741874,1759344640459,-500.0,0.00020821,2]
[388741876,1759344640468,-500.0,0.00020821,2]
[388741878,1759344640478,-500.0,0.00020821,2]
[388741880,1759344640487,-500.0,0.00020821,2]
[388741882,1759344640497,-500.0,0.00020821,2]
[388741884,1759344640511,-500.0,0.00020821,2]
[388741886,1759344640527,-500.0,0.00020821,2]
[388741888,1759344640539,-392.61,0.00020821,2]
[388741890,1759344640553,-507.82,0.00020821,2]
[388741892,1759344640562,-500.0,0.00020821,2]
[388741894,1759344640571,-500.0,0.00020821,2]
[388741896,1759344640580,-638.64983672,0.00020821,2]
[388741898,1759344640591,-500.0,0.00020821,2]
[388741900,1759344640600,-545.4,0.00020821,2]
[388741902,1759344640609,-987.72,0.00020821,2]
[388741904,1759344640618,-500.0,0.00020821,2]
[388741906,1759344640627,-500.0,0.00020821,2]
[388741908,1759344640636,-2410.9,0.00020821,2]
[388741910,1759344640645,-500.0,0.00020821,2]
[388741912,1759344640654,-500.0,0.00020821,2]
[388741915,1759344640664,-500.0,0.00020821,2]
[388741916,1759344640673,-500.0,0.00020821,2]
[388741918,1759344640682,-500.0,0.00020821,2]
[388741920,1759344640691,-500.0,0.00020821,2]
[388741922,1759344640701,-773.86,0.00020821,2]
[388741924,1759344640710,-710.18,0.00020821,2]
[388741926,1759344640719,-500.0,0.00020821,2]
[388741928,1759344640728,-500.0,0.00020821,2]
[388741930,1759344640737,-500.0,0.00020821,2]
[388741932,1759344640746,-500.0,0.00020821,2]
[388741934,1759344640755,-500.0,0.00020821,2]
[388741936,1759344640764,-500.0,0.00020821,2]
[388741939,1759344640773,-500.0,0.00020821,2]
[388741941,1759344640783,-500.0,0.00020821,2]
[388741943,1759344640792,-500.0,0.00020821,2]
[388741946,1759344640802,-500.0,0.00020821,2]
[388741947,1759344640811,-500.0,0.00020821,2]
[388741949,1759344640821,-2207.95,0.00020821,2]
[388741952,1759344640832,-1123.46,0.00020821,2]
[388741953,1759344640842,-679.61,0.00020821,2]
[388741955,1759344640851,-500.0,0.00020821,2]
[388741957,1759344640860,-525.78,0.00020821,2]
[388741959,1759344640869,-500.0,0.00020821,2]
[388741961,1759344640878,-902.54,0.00020821,2]
[388741963,1759344640887,-500.0,0.00020821,2]
[388741965,1759344640897,-500.0,0.00020821,2]
[388741967,1759344640906,-500.0,0.00020821,2]
[388741969,1759344640916,-594.28,0.00020821,2]
[388741971,1759344640925,-500.0,0.00020821,2]
[388741973,1759344640934,-500.0,0.00020821,2]
[388741975,1759344640943,-942.7,0.00020821,2]
[388741977,1759344640952,-500.0,0.00020821,2]
[388741979,1759344640961,-653.46,0.00020821,2]
[388741981,1759344640970,-500.0,0.00020821,2]
[388741983,1759344640979,-159.5,0.00020845,2]
[388741985,1759344640988,-1680.0,0.00020895,2]
[388741987,1759344640998,-420.0,0.00020895,2]
[388741989,1759344641008,-252.85062586,0.000209,2]
[388741992,1759344641017,-500.0,0.00020981,2]
[388741994,1759344641027,-200.01019669,0.00020981,2]
[388741996,1759344641036,-1680.0,0.00020995,2]
[388741997,1759344641046,-273.30125555,0.00021,2]
[388742000,1759344641056,-150.0,0.00021093,2]
[388742002,1759344641065,-500.0,0.00021095,2]
[388742004,1759344641074,-500.0,0.00021095,2]
[388742005,1759344641083,-500.0,0.00021095,2]
[388742007,1759344641093,-500.0,0.00021095,2]
[388742010,1759344641103,-205.27196827,0.00021095,2]
[388742011,1759344641113,-500.0,0.00021095,2]
[388742013,1759344641122,-257.14,0.00021095,2]
[388742016,1759344641131,-500.0,0.00021095,2]
[388742017,1759344641140,-500.0,0.00021095,2]
[388742019,1759344641149,-262.84194886,0.00021095,2]
[388742021,1759344641158,-507.82,0.00021095,2]
[388742023,1759344641167,-500.0,0.00021095,2]
[388742025,1759344641176,-500.0,0.00021095,2]
[388742027,1759344641185,-500.0,0.00021095,2]
[388742029,1759344641194,-545.4,0.00021095,2]
[388742031,1759344641203,-987.72,0.00021095,2]
[388742033,1759344641212,-500.0,0.00021095,2]
[388742035,1759344641222,-500.0,0.00021095,2]
[388742037,1759344641232,-2410.9,0.00021095,2]
[388742040,1759344641241,-500.0,0.00021095,2]
[388742042,1759344641250,-500.0,0.00021095,2]
[388742044,1759344641260,-500.0,0.00021095,2]
[388742045,1759344641270,-500.0,0.00021095,2]
[388742048,1759344641279,-500.0,0.00021095,2]
[388742050,1759344641289,-500.0,0.00021095,2]
[388742052,1759344641298,-773.86,0.00021095,2]
[388742054,1759344641307,-710.18,0.00021095,2]
[388742055,1759344641316,-500.0,0.00021095,2]
[388742057,1759344641326,-500.0,0.00021095,2]
[388742060,1759344641337,-500.0,0.00021095,2]
[388742061,1759344641349,-500.0,0.00021095,2]
[388742063,1759344641358,-500.0,0.00021095,2]
[388742065,1759344641367,-511.17,0.00021095,2]
[388742067,1759344641377,-500.0,0.00021095,2]
[388742069,1759344641386,-500.0,0.00021095,2]
[388742071,1759344641395,-500.0,0.00021095,2]
[388742074,1759344641405,-500.0,0.00021095,2]
[388742075,1759344641424,-500.0,0.00021095,2]
[388742077,1759344641434,-2207.95,0.00021095,2]
[388742079,1759344641443,-1123.46,0.00021095,2]
[388742081,1759344641452,-679.61,0.00021095,2]
[388742083,1759344641461,-500.0,0.00021095,2]
[388742085,1759344641470,-525.78,0.00021095,2]
[388742087,1759344641479,-500.0,0.00021095,2]
[388742089,1759344641488,-902.54,0.00021095,2]
[388742091,1759344641498,-500.0,0.00021095,2]
[388742093,1759344641507,-500.0,0.00021095,2]
[388742095,1759344641516,-500.0,0.00021095,2]
[388742097,1759344641525,-594.28,0.00021095,2]
[388742099,1759344641534,-500.0,0.00021095,2]
[388742102,1759344641543,-500.0,0.00021095,2]
[388742104,1759344641551,-942.7,0.00021095,2]
[388742106,1759344641561,-500.0,0.00021095,2]
[388742108,1759344641570,-653.46,0.00021095,2]
[388742110,1759344641579,-500.0,0.00021095,2]
[388742112,1759344641589,-151.0,0.000211,3]
[388742114,1759344641597,-648.20735854,0.00021163,2]
[388742116,1759344641607,-360.0,0.00021211,2]
[388742118,1759344641622,-4000.0,0.0002125,4]
[388742120,1759344641631,-471.20805777,0.00021256,2]
[388742122,1759344641640,-500.0,0.00021256,2]
[388742124,1759344641649,-176.23590451,0.00021256,2]
[388742126,1759344641659,-500.0,0.00021256,2]
[388742128,1759344641668,-500.0,0.00021269,2]
[388742130,1759344641677,-500.0,0.00021269,2]
[388742131,1759344641686,-500.0,0.00021269,2]
[388742132,1759344641695,-3060.05684726,0.0002128,2]
[388742133,1759344641705,-1000.0,0.00021316,2]
[388742134,1759344641715,-2949.0,0.0002133,2]
[388742135,1759344641724,-500.0,0.00021369,2]
[388742136,1759344641734,-500.0,0.00021369,2]
[388742137,1759344641743,-500.0,0.00021369,2]
[388742139,1759344641752,-500.0,0.00021369,2]
[388742141,1759344641762,-500.0,0.00021369,2]
[388742142,1759344641771,-500.0,0.00021369,2]
[388742144,1759344641780,-500.0,0.00021369,2]
[388742145,1759344641789,-507.82,0.00021369,2]
[388742147,1759344641798,-500.0,0.00021369,2]
[388742149,1759344641807,-500.0,0.00021369,2]
[388742150,1759344641816,-395.86,0.00021369,2]
[388742151,1759344641825,-545.4,0.00021369,2]
[388742152,1759344641833,-987.72,0.00021369,2]
[388742153,1759344641844,-217.79,0.00021369,2]
[388742154,1759344641853,-500.0,0.00021369,2]
[388742155,1759344641863,-2410.9,0.00021369,2]
[388742156,1759344641873,-500.0,0.00021369,2]
[388742158,1759344641881,-500.0,0.00021369,2]
[388742159,1759344641891,-500.0,0.00021369,2]
[388742160,1759344641901,-500.0,0.00021369,2]
[388742161,1759344641910,-460.0,0.00021369,2]
[388742162,1759344641919,-500.0,0.00021369,2]
[388742163,1759344641930,-773.86,0.00021369,2]
[388742164,1759344641939,-710.18,0.00021369,2]
[388742165,1759344641949,-500.0,0.00021369,2]
[388742166,1759344641957,-500.0,0.00021369,2]
[388742167,1759344641967,-500.0,0.00021369,2]
[388742168,1759344641975,-500.0,0.00021369,2]
[388742169,1759344641984,-500.0,0.00021369,2]
[388742170,1759344641993,-500.0,0.00021369,2]
[388742171,1759344642001,-500.0,0.00021369,2]
[388742172,1759344642010,-500.0,0.00021369,2]
[388742173,1759344642019,-283.21223899,0.00021369,2]
[388742174,1759344642028,-500.0,0.00021369,2]
[388742175,1759344642037,-2207.95,0.00021369,2]
[388742176,1759344642045,-1123.46,0.00021369,2]
[388742177,1759344642054,-679.61,0.00021369,2]
[388742178,1759344642063,-500.0,0.00021369,2]
[388742179,1759344642071,-525.78,0.00021369,2]
[388742180,1759344642080,-500.0,0.00021369,2]
[388742181,1759344642089,-902.54,0.00021369,2]
[388742182,1759344642098,-500.0,0.00021369,2]
[388742183,1759344642107,-500.0,0.00021369,2]
[388742184,1759344642116,-500.0,0.00021369,2]
[388742185,1759344642125,-594.28,0.00021369,2]
[388742186,1759344642134,-500.0,0.00021369,2]
[388742187,1759344642143,-500.0,0.00021369,2]
[388742188,1759344642152,-942.7,0.00021369,2]
[388742189,1759344642161,-500.0,0.00021369,2]
[388742190,1759344642169,-653.46,0.00021369,2]
[388742191,1759344642178,-500.0,0.00021369,2]
[388742192,1759344642187,-155.0,0.00021396,2]
[388742193,1759344642196,-6543.76759384,0.000215,2]
[388742194,1759344642206,-720.0,0.00021515,20]
[388742195,1759344642215,-500.0,0.00021522,2]
[388742196,1759344642223,-500.0,0.00021522,2]
[388742197,1759344642232,-500.0,0.00021522,2]
[388742198,1759344642241,-500.0,0.00021522,2]
[388742199,1759344642249,-500.0,0.00021522,2]
[388742200,1759344642258,-1000.0,0.00021529,2]
[388742201,1759344642267,-447.66748625,0.00021548,2]
[388742202,1759344642276,-500.0,0.00021548,2]
[388742203,1759344642284,-150.0,0.00021593,2]
[388742204,1759344642293,-168.0,0.00021621,2]
[388742205,1759344642301,-500.0,0.00021643,2]
[388742206,1759344642310,-500.0,0.00021643,2]
[388742207,1759344642319,-500.0,0.00021643,2]
[388742208,1759344642328,-500.0,0.00021643,2]
[388742209,1759344642338,-500.0,0.00021643,2]
[388742210,1759344642350,-500.0,0.00021643,2]
[388742211,1759344642359,-500.0,0.00021643,2]
[388742212,1759344642369,-507.82,0.00021643,2]
[388742213,1759344642377,-500.0,0.00021643,2]
[388742214,1759344642387,-500.0,0.00021643,2]
[388742215,1759344642396,-545.4,0.00021643,2]
[388742216,1759344642404,-987.72,0.00021643,2]
[388742217,1759344642415,-500.0,0.00021643,2]
[388742218,1759344642424,-2410.9,0.00021643,2]
[388742219,1759344642433,-500.0,0.00021643,2]
[388742220,1759344642442,-500.0,0.00021643,2]
[388742221,1759344642451,-500.0,0.00021643,2]
[388742222,1759344642460,-500.0,0.00021643,2]
[388742223,1759344642469,-500.0,0.00021643,2]
[388742224,1759344642477,-773.86,0.00021643,2]
[388742225,1759344642486,-710.18,0.00021643,2]
[388742226,1759344642496,-500.0,0.00021643,2]
[388742227,1759344642504,-500.0,0.00021643,2]
[388742228,1759344642513,-500.0,0.00021643,2]
[388742229,1759344642521,-500.0,0.00021643,2]
[388742230,1759344642530,-500.0,0.00021643,2]
[388742231,1759344642539,-602.29463046,0.00021643,2]
[388742232,1759344642547,-500.0,0.00021643,2]
[388742233,1759344642556,-500.0,0.00021643,2]
[388742234,1759344642564,-500.0,0.00021643,2]
[388742235,1759344642573,-2207.95,0.00021643,2]
[388742236,1759344642583,-1123.46,0.00021643,2]
[388742237,1759344642595,-679.61,0.00021643,2]
[388742238,1759344642604,-500.0,0.00021643,2]
[388742239,1759344642614,-525.78,0.00021643,2]
[388742240,1759344642623,-500.0,0.00021643,2]
[388742241,1759344642632,-902.54,0.00021643,2]
[388742242,1759344642641,-500.0,0.00021643,2]
[388742243,1759344642650,-500.0,0.00021643,2]
[388742244,1759344642659,-500.0,0.00021643,2]
[388742245,1759344642669,-594.28,0.00021643,2]
[388742246,1759344642678,-189.70605968,0.00021643,2]
[388742247,1759344642687,-648.27286721,0.00021643,2]
[388742248,1759344642696,-942.7,0.00021643,2]
[388742249,1759344642706,-500.0,0.00021643,2]
[388742250,1759344642715,-653.46,0.00021643,2]
[388742251,1759344642725,-500.0,0.00021643,2]
[388742252,1759344642734,-154.450076,0.00021644,2]
[388742253,1759344642743,-168.0,0.00021652,2]
[388742254,1759344642753,-168.0,0.00021661,2]
[388742255,1759344642762,-154.450076,0.00021758,3]
[388742256,1759344642771,-460.0,0.00021759,2]
[388742257,1759344642780,-5000.0,0.00021778,2]
[388742258,1759344642790,-910.98424207,0.00021804,2]
[388742259,1759344642800,-1000.0,0.00021804,2]
[388742260,1759344642810,-505.65428877,0.00021817,2]
[388742261,1759344642819,-630.1077189,0.00021817,2]
[388742262,1759344642829,-1000.0,0.00021817,2]
[388742263,1759344642839,-168.0,0.00021882,2]
[388742264,1759344642848,-500.0,0.00021917,2]
[388742265,1759344642857,-500.0,0.00021917,2]
[388742266,1759344642867,-500.0,0.00021917,2]
[388742267,1759344642876,-500.0,0.00021917,2]
[388742268,1759344642885,-500.0,0.00021917,2]
[388742269,1759344642895,-500.0,0.00021917,2]
[388742270,1759344642904,-500.0,0.00021917,2]
[388742271,1759344642914,-500.0,0.00021917,2]
[388742272,1759344642923,-500.0,0.00021917,2]
[388742273,1759344642933,-500.0,0.00021917,2]
[388742274,1759344642942,-301.05292072,0.00021917,2]
[388742275,1759344642952,-500.0,0.00021917,2]
[388742276,1759344642961,-286.07,0.00021917,2]
[388742277,1759344642970,-507.82,0.00021917,2]
[388742278,1759344642979,-500.0,0.00021917,2]
[388742279,1759344642988,-500.0,0.00021917,2]
[388742280,1759344642997,-545.4,0.00021917,2]
[388742281,1759344643006,-987.72,0.00021917,2]
[388742282,1759344643015,-500.0,0.00021917,2]
[388742283,1759344643024,-2410.9,0.00021917,2]
[388742284,1759344643033,-500.0,0.00021917,2]
[388742285,1759344643042,-500.0,0.00021917,2]
[388742286,1759344643051,-500.0,0.00021917,2]
[388742287,1759344643061,-500.0,0.00021917,2]
[388742288,1759344643070,-500.0,0.00021917,2]
[388742289,1759344643079,-710.18,0.00021917,2]
[388742290,1759344643088,-500.0,0.00021917,2]
[388742291,1759344643098,-500.0,0.00021917,2]
[388742292,1759344643107,-773.86,0.00021917,2]
[388742293,1759344643116,-500.0,0.00021917,2]
[388742294,1759344643125,-500.0,0.00021917,2]
[388742295,1759344643134,-500.0,0.00021917,2]
[388742296,1759344643144,-500.0,0.00021917,2]
[388742297,1759344643153,-500.0,0.00021917,2]
[388742298,1759344643162,-500.0,0.00021917,2]
[388742299,1759344643171,-2207.95,0.00021917,2]
[388742300,1759344643180,-1123.46,0.00021917,2]
[388742301,1759344643189,-679.61,0.00021917,2]
[388742302,1759344643198,-500.0,0.00021917,2]
[388742303,1759344643208,-525.78,0.00021917,2]
[388742304,1759344643217,-349.12827618,0.00021917,2]
[388742305,1759344643226,-902.54,0.00021917,2]
[388742306,1759344643235,-500.0,0.00021917,2]
[388742308,1759344643244,-500.0,0.00021917,2]
[388742310,1759344643253,-500.0,0.00021917,2]
[388742311,1759344643264,-594.28,0.00021917,2]
[388742312,1759344643274,-942.7,0.00021917,2]
[388742313,1759344643283,-500.0,0.00021917,2]
[388742314,1759344643292,-653.46,0.00021917,2]
[388742315,1759344643301,-500.0,0.00021917,2]
[388742316,1759344643310,-400.0,0.00021918,2]
[388742317,1759344643320,-3060.05684726,0.00021922,2]
[388742318,1759344643329,-979.0,0.00021975,2]
[388742319,1759344643339,-630.0,0.00021975,2]
[388742320,1759344643353,-2156.0,0.00021975,2]
[388742321,1759344643362,-150.0,0.00021975,2]
[388742323,1759344643371,-7562.6,0.00022,2]
[388742324,1759344643380,-62153.63254964,0.00022,5]
[388742325,1759344643389,-168.0,0.00022022,2]
[388742326,1759344643398,-168.0,0.0002206,2]
[388742327,1759344643407,-1000.0,0.0002207,2]
[388742328,1759344643416,-500.0,0.0002207,2]
[388742329,1759344643425,-1000.0,0.0002207,2]
[388742330,1759344643435,-1000.0,0.0002207,2]
[388742331,1759344643444,-1500.0,0.00022077,2]
[388742332,1759344643453,-150.0,0.00022093,2]
[388742333,1759344643462,-1000.0,0.00022096,2]
[388742334,1759344643471,-168.0,0.00022186,2]
[388742336,1759344643597,-500.0,0.00022191,2]
[388742337,1759344643607,-500.0,0.00022191,2]
[388742338,1759344643616,-500.0,0.00022191,2]
[388742339,1759344643625,-500.0,0.00022191,2]
[388742340,1759344643635,-500.0,0.00022191,2]
[388742341,1759344643644,-507.82,0.00022191,2]
[388742342,1759344643653,-500.0,0.00022191,2]
[388742343,1759344643662,-500.0,0.00022191,2]
[388742344,1759344643671,-545.4,0.00022191,2]
[388742346,1759344643680,-987.72,0.00022191,2]
[388742347,1759344643690,-500.0,0.00022191,2]
[388742348,1759344643701,-2410.9,0.00022191,2]
[388742349,1759344643712,-500.0,0.00022191,2]
[388742350,1759344643721,-500.0,0.00022191,2]
[388742351,1759344643732,-500.0,0.00022191,2]
[388742352,1759344643742,-500.0,0.00022191,2]
[388742353,1759344643753,-500.0,0.00022191,2]
[388742354,1759344643764,-500.0,0.00022191,2]
[388742355,1759344643773,-710.18,0.00022191,2]
[388742356,1759344643782,-500.0,0.00022191,2]
[388742357,1759344643791,-773.86,0.00022191,2]
[388742358,1759344643800,-500.0,0.00022191,2]
[388742359,1759344643809,-500.0,0.00022191,2]
[388742360,1759344643819,-527.35,0.00022191,2]
[388742361,1759344643828,-500.0,0.00022191,2]
[388742362,1759344643838,-500.0,0.00022191,2]
[388742363,1759344643847,-500.0,0.00022191,2]
[388742364,1759344643856,-2207.95,0.00022191,2]
[388742365,1759344643865,-1123.46,0.00022191,2]
[388742366,1759344643874,-679.61,0.00022191,2]
[388742367,1759344643884,-500.0,0.00022191,2]
[388742368,1759344643893,-525.78,0.00022191,2]
[388742369,1759344643902,-902.54,0.00022191,2]
[388742370,1759344643911,-500.0,0.00022191,2]
[388742371,1759344643920,-500.0,0.00022191,2]
[388742372,1759344643929,-500.0,0.00022191,2]
[388742373,1759344643938,-594.28,0.00022191,2]
[388742374,1759344643947,-942.7,0.00022191,2]
[388742375,1759344643956,-158.66,0.00022191,2]
[388742376,1759344643965,-566.51,0.00022191,2]
[388742377,1759344643975,-653.46,0.00022191,2]
[388742378,1759344643985,-255.0,0.00022219,6]
[388742379,1759344643994,-154.450076,0.00022225,28]
[388742380,1759344644006,-560.0,0.00022307,2]
[388742381,1759344644015,-500.0,0.00022352,2]
[388742382,1759344644025,-168.0,0.00022368,2]
[388742383,1759344644035,-168.0,0.00022386,2]
[388742384,1759344644044,-168.0,0.00022458,2]
[388742385,1759344644054,-640.52,0.00022465,2]
[388742386,1759344644064,-500.0,0.00022465,2]
[388742387,1759344644073,-500.0,0.00022465,2]
[388742388,1759344644082,-589.6,0.00022465,2]
[388742389,1759344644092,-500.0,0.00022465,2]
[388742390,1759344644101,-507.82,0.00022465,2]
[388742391,1759344644110,-500.0,0.00022465,2]